[Event "Betsys MČR v online bleskovém šachu 2021"]
[Site "Chess.com"]
[Date "2021.04.17"]
[Round "3"]
[White "Petroniuss"]
[Black "Daffac"]
[Result "0-1"]
[WhiteElo "2292"]
[BlackElo "2102"]
[TimeControl "180+1"]
[EndTime "9:26:54 PDT"]
[Termination "Uživatel Daffac zvítězil po vzdání soupeře"]

1. e4 {[%clk 0:03:00.9]} 1... c6 {[%clk 0:02:59.5]} 2. d3 {[%clk 0:03:00.4]}
2... d5 {[%clk 0:02:59.8]} 3. Nd2 {[%clk 0:03:01.3]} 3... e5 {[%clk 0:02:57.4]}
4. Ngf3 {[%clk 0:03:01.7]} 4... Bd6 {[%clk 0:02:57.4]} 5. g3 {[%clk 0:03:02.4]}
5... Nf6 {[%clk 0:02:55.9]} 6. Bg2 {[%clk 0:03:02.9]} 6... O-O {[%clk
0:02:56.3]} 7. O-O {[%clk 0:03:02.5]} 7... Re8 {[%clk 0:02:55]} 8. Re1 {[%clk
0:03:02.5]} 8... Nbd7 {[%clk 0:02:55.1]} 9. c3 {[%clk 0:03:02.5]} 9... a5 {[%clk
0:02:50.9]} 10. a4 {[%clk 0:03:01.3]} 10... Nf8 {[%clk 0:02:49.2]} 11. Qc2
{[%clk 0:03:00.8]} 11... Ng6 {[%clk 0:02:37.2]} 12. Nf1 {[%clk 0:03:00]} 12...
Be6 {[%clk 0:02:29.6]} 13. Ng5 {[%clk 0:02:56.5]} 13... Bd7 {[%clk 0:02:18.5]}
14. Ne3 {[%clk 0:02:56.3]} 14... d4 {[%clk 0:02:07.7]} 15. Nf5 {[%clk
0:02:51.9]} 15... Bxf5 {[%clk 0:01:53.6]} 16. exf5 {[%clk 0:02:52.8]} 16... Ne7
{[%clk 0:01:54.1]} 17. Be4 {[%clk 0:02:47.4]} 17... Ned5 {[%clk 0:01:48.1]} 18.
c4 {[%clk 0:02:35.2]} 18... Nb4 {[%clk 0:01:44.5]} 19. Qe2 {[%clk 0:02:34.5]}
19... h6 {[%clk 0:01:36]} 20. Nf3 {[%clk 0:02:31.2]} 20... Nxe4 {[%clk
0:01:36.1]} 21. dxe4 {[%clk 0:02:25]} 21... d3 {[%clk 0:01:32.3]} 22. Qe3 {[%clk
0:02:02.5]} 22... Nc2 {[%clk 0:01:28.5]} 23. Qxd3 {[%clk 0:02:02.5]} 23... Nxa1
{[%clk 0:01:25.9]} 24. Be3 {[%clk 0:01:57.1]} 24... Bb4 {[%clk 0:01:14.3]} 25.
Qxd8 {[%clk 0:01:56.1]} 25... Raxd8 {[%clk 0:01:14.8]} 26. Rxa1 {[%clk
0:01:56.6]} 26... Rd3 {[%clk 0:01:10.4]} 27. Rc1 {[%clk 0:01:42.2]} 27... f6
{[%clk 0:01:08.3]} 28. Kf1 {[%clk 0:01:37.5]} 28... Red8 {[%clk 0:01:08.3]} 29.
Ke2 {[%clk 0:01:38]} 29... Kf7 {[%clk 0:01:05.5]} 30. Ne1 {[%clk 0:01:37.8]}
30... Rd2+ {[%clk 0:00:52.9]} 31. Bxd2 {[%clk 0:01:26.8]} 31... Rxd2+ {[%clk
0:00:53.8]} 32. Ke3 {[%clk 0:01:19.1]} 32... Rxb2 {[%clk 0:00:54.3]} 33. Nd3
{[%clk 0:01:19.3]} 33... Bd2+ {[%clk 0:00:53.4]} 34. Kf3 {[%clk 0:01:03.5]}
34... Bxc1 {[%clk 0:00:54.3]} 35. Nxc1 {[%clk 0:01:03.8]} 35... Rc2 {[%clk
0:00:53.3]} 36. Nd3 {[%clk 0:01:00.8]} 36... Rxc4 {[%clk 0:00:53.1]} 37. Ke3
{[%clk 0:01:01.2]} 37... Rxa4 {[%clk 0:00:53]} 38. Nc5 {[%clk 0:01:01.7]} 38...
Rb4 {[%clk 0:00:49.7]} 39. f4 {[%clk 0:00:53.1]} 39... exf4+ {[%clk 0:00:45.4]}
40. gxf4 {[%clk 0:00:54]} 40... a4 {[%clk 0:00:45.3]} 41. e5 {[%clk 0:00:54.1]}
41... a3 {[%clk 0:00:40.7]} 42. e6+ {[%clk 0:00:42.9]} 42... Ke7 {[%clk
0:00:40.3]} 43. Nd3 {[%clk 0:00:33.9]} 43... Rb3 {[%clk 0:00:37.5]} 44. Kd2
{[%clk 0:00:33.7]} 44... Rxd3+ {[%clk 0:00:35.3]} 45. Kxd3 {[%clk 0:00:22.6]}
45... a2 {[%clk 0:00:35.8]} 0-1

[Event "Betsys MČR v online bleskovém šachu 2021"]
[Site "Chess.com"]
[Date "2021.04.17"]
[Round "3"]
[White "Danyjel"]
[Black "Patriktesko"]
[Result "0-1"]
[WhiteElo "1711"]
[BlackElo "2072"]
[TimeControl "180+1"]
[EndTime "9:26:57 PDT"]
[Termination "Uživatel Patriktesko zvítězil na čas"]

1. e4 {[%clk 0:03:00.2]} 1... d5 {[%clk 0:02:59.9]} 2. exd5 {[%clk 0:02:59.5]}
2... Qxd5 {[%clk 0:03:00.8]} 3. Nc3 {[%clk 0:02:59.2]} 3... Qd8 {[%clk
0:03:01.7]} 4. Bc4 {[%clk 0:02:58.6]} 4... Nf6 {[%clk 0:03:02.6]} 5. d3 {[%clk
0:02:58.4]} 5... Bg4 {[%clk 0:03:02.2]} 6. f3 {[%clk 0:02:57.6]} 6... Bh5 {[%clk
0:03:02]} 7. Qe2 {[%clk 0:02:56]} 7... e6 {[%clk 0:02:59.8]} 8. Bd2 {[%clk
0:02:54.1]} 8... c6 {[%clk 0:03:00]} 9. O-O-O {[%clk 0:02:53.8]} 9... Nbd7
{[%clk 0:02:59.8]} 10. g4 {[%clk 0:02:49]} 10... Bg6 {[%clk 0:02:59.7]} 11. f4
{[%clk 0:02:46]} 11... Be7 {[%clk 0:02:52.6]} 12. h4 {[%clk 0:02:39.1]} 12...
Nb6 {[%clk 0:02:48.8]} 13. Bb3 {[%clk 0:02:27]} 13... h6 {[%clk 0:02:44.1]} 14.
Re1 {[%clk 0:02:23.2]} 14... Nfd5 {[%clk 0:02:38.9]} 15. Nxd5 {[%clk 0:02:10.6]}
15... cxd5 {[%clk 0:02:34.4]} 16. f5 {[%clk 0:02:07.2]} 16... exf5 {[%clk
0:02:27.4]} 17. gxf5 {[%clk 0:02:01.2]} 17... Bxf5 {[%clk 0:02:27.1]} 18. Bb4
{[%clk 0:01:51.1]} 18... Be6 {[%clk 0:02:26.1]} 19. Bxe7 {[%clk 0:01:43.5]}
19... Qxe7 {[%clk 0:02:27]} 20. Nf3 {[%clk 0:01:33.6]} 20... O-O-O {[%clk
0:02:15.8]} 21. Kb1 {[%clk 0:01:33.2]} 21... Qd6 {[%clk 0:02:09.2]} 22. Nd4
{[%clk 0:01:17.8]} 22... Rhe8 {[%clk 0:02:00.9]} 23. Qg2 {[%clk 0:01:03.3]}
23... g6 {[%clk 0:01:33.9]} 24. Nb5 {[%clk 0:00:56.6]} 24... Qc5 {[%clk
0:01:17.9]} 25. Nc3 {[%clk 0:00:43]} 25... a6 {[%clk 0:01:05.5]} 26. Na4 {[%clk
0:00:42.6]} 26... Nxa4 {[%clk 0:01:04.2]} 27. Bxa4 {[%clk 0:00:42.3]} 27... b5
{[%clk 0:01:03.4]} 28. Bb3 {[%clk 0:00:39.6]} 28... Kb8 {[%clk 0:01:02]} 29. Qd2
{[%clk 0:00:29]} 29... h5 {[%clk 0:01:00.7]} 30. Qa5 {[%clk 0:00:28.5]} 30...
Kb7 {[%clk 0:00:58.6]} 31. Re5 {[%clk 0:00:20.1]} 31... Qb6 {[%clk 0:00:57.1]}
32. Qxb6+ {[%clk 0:00:14.6]} 32... Kxb6 {[%clk 0:00:56.8]} 33. Rhe1 {[%clk
0:00:15.1]} 33... Rf8 {[%clk 0:00:48.7]} 34. d4 {[%clk 0:00:10.1]} 34... Kc6
{[%clk 0:00:47.7]} 35. c3 {[%clk 0:00:09.7]} 35... Rd6 {[%clk 0:00:45.6]} 36.
Bc2 {[%clk 0:00:07.1]} 36... a5 {[%clk 0:00:44.7]} 37. Bxg6 {[%clk 0:00:06.9]}
37... fxg6 {[%clk 0:00:43.6]} 38. Rxe6 {[%clk 0:00:06.7]} 38... Rf6 {[%clk
0:00:43.1]} 39. Rxd6+ {[%clk 0:00:02.7]} 39... Kxd6 {[%clk 0:00:42.5]} 0-1

[Event "Betsys MČR v online bleskovém šachu 2021"]
[Site "Chess.com"]
[Date "2021.04.17"]
[Round "3"]
[White "Hapinka"]
[Black "KarelZalesky"]
[Result "1-0"]
[WhiteElo "1854"]
[BlackElo "1087"]
[TimeControl "180+1"]
[EndTime "9:26:57 PDT"]
[Termination "Uživatel Hapinka zvítězil na čas"]

1. e4 {[%clk 0:03:00.4]} 1... c5 {[%clk 0:02:59.5]} 2. Nf3 {[%clk 0:03:00.2]}
2... d6 {[%clk 0:02:58.7]} 3. d4 {[%clk 0:03:00.2]} 3... cxd4 {[%clk 0:02:58.9]}
4. Nxd4 {[%clk 0:03:00.8]} 4... Nf6 {[%clk 0:02:59.1]} 5. Nc3 {[%clk 0:03:00.9]}
5... a6 {[%clk 0:02:59]} 6. Be2 {[%clk 0:03:00.2]} 6... Nc6 {[%clk 0:02:57.1]}
7. Be3 {[%clk 0:02:57.6]} 7... e5 {[%clk 0:02:56.3]} 8. Nf3 {[%clk 0:02:56.4]}
8... h6 {[%clk 0:02:53.5]} 9. O-O {[%clk 0:02:55.7]} 9... Be6 {[%clk 0:02:52.6]}
10. Qd2 {[%clk 0:02:10.8]} 10... Be7 {[%clk 0:02:41.8]} 11. Rad1 {[%clk
0:02:10]} 11... Ng4 {[%clk 0:02:12.7]} 12. h3 {[%clk 0:02:09.2]} 12... Nxe3
{[%clk 0:02:12.2]} 13. Qxe3 {[%clk 0:02:08.9]} 13... b5 {[%clk 0:02:04.8]} 14.
Nd5 {[%clk 0:02:08]} 14... Bxd5 {[%clk 0:01:44]} 15. Rxd5 {[%clk 0:02:03.1]}
15... Qc7 {[%clk 0:01:32.1]} 16. c3 {[%clk 0:02:01]} 16... O-O {[%clk
0:01:29.5]} 17. Rfd1 {[%clk 0:02:00.5]} 17... Rac8 {[%clk 0:01:26]} 18. Nh2
{[%clk 0:01:42.7]} 18... b4 {[%clk 0:01:06.9]} 19. Bxa6 {[%clk 0:01:35.4]} 19...
Ra8 {[%clk 0:01:05.7]} 20. Bc4 {[%clk 0:01:21.4]} 20... bxc3 {[%clk 0:01:04.3]}
21. Qxc3 {[%clk 0:01:17]} 21... Nd4 {[%clk 0:01:00.8]} 22. Qd3 {[%clk
0:01:08.2]} 22... Rfc8 {[%clk 0:00:56.9]} 23. Bb3 {[%clk 0:01:01.4]} 23... Ra5
{[%clk 0:00:42.2]} 24. Rxa5 {[%clk 0:00:56.5]} 24... Qxa5 {[%clk 0:00:41.4]} 25.
Nf3 {[%clk 0:00:55.2]} 25... Nxb3 {[%clk 0:00:34.7]} 26. Qxb3 {[%clk 0:00:54.9]}
26... Ra8 {[%clk 0:00:27.5]} 27. a3 {[%clk 0:00:53.7]} 27... Qa6 {[%clk
0:00:22.6]} 28. Qd3 {[%clk 0:00:51.2]} 28... Qb6 {[%clk 0:00:20.7]} 29. Qc3
{[%clk 0:00:46.4]} 29... Rb8 {[%clk 0:00:19.6]} 30. Rd2 {[%clk 0:00:44.2]} 30...
g6 {[%clk 0:00:17.5]} 31. Ne1 {[%clk 0:00:40.7]} 31... Qb7 {[%clk 0:00:14.5]}
32. f3 {[%clk 0:00:36]} 32... Kg7 {[%clk 0:00:12.7]} 33. Nc2 {[%clk 0:00:34.4]}
33... Qa7+ {[%clk 0:00:11.7]} 34. Kh2 {[%clk 0:00:32.5]} 34... Qc7 {[%clk
0:00:09.8]} 35. Qxc7 {[%clk 0:00:29.6]} 1-0

[Event "Betsys MČR v online bleskovém šachu 2021"]
[Site "Chess.com"]
[Date "2021.04.17"]
[Round "3"]
[White "kominekmart"]
[Black "Classemence"]
[Result "0-1"]
[WhiteElo "1576"]
[BlackElo "1929"]
[TimeControl "180+1"]
[EndTime "9:27:01 PDT"]
[Termination "Uživatel Classemence zvítězil matem"]

1. e4 {[%clk 0:03:00.9]} 1... e5 {[%clk 0:02:58.8]} 2. Nf3 {[%clk 0:03:00.7]}
2... Nc6 {[%clk 0:02:58.5]} 3. Bc4 {[%clk 0:03:00.2]} 3... Nf6 {[%clk
0:02:56.8]} 4. d3 {[%clk 0:02:59.8]} 4... Be7 {[%clk 0:02:51.7]} 5. c3 {[%clk
0:02:52.5]} 5... O-O {[%clk 0:02:50.8]} 6. b4 {[%clk 0:02:47.4]} 6... d6 {[%clk
0:02:42.7]} 7. b5 {[%clk 0:02:44.6]} 7... Na5 {[%clk 0:02:36.5]} 8. Bb3 {[%clk
0:02:43.1]} 8... Nxb3 {[%clk 0:02:36.3]} 9. axb3 {[%clk 0:02:42.7]} 9... Bg4
{[%clk 0:02:33.2]} 10. h3 {[%clk 0:02:38.5]} 10... Bh5 {[%clk 0:02:27.6]} 11.
O-O {[%clk 0:02:34.9]} 11... c6 {[%clk 0:02:16]} 12. bxc6 {[%clk 0:02:29.5]}
12... bxc6 {[%clk 0:02:15.6]} 13. Nbd2 {[%clk 0:02:23.5]} 13... Qc7 {[%clk
0:02:05]} 14. b4 {[%clk 0:02:21.9]} 14... Rfd8 {[%clk 0:02:01.6]} 15. Ba3 {[%clk
0:02:07.8]} 15... a5 {[%clk 0:01:58.9]} 16. bxa5 {[%clk 0:02:00.2]} 16... Rxa5
{[%clk 0:01:58.4]} 17. Bb2 {[%clk 0:01:52]} 17... Rda8 {[%clk 0:01:57.4]} 18.
Rxa5 {[%clk 0:01:48.3]} 18... Rxa5 {[%clk 0:01:58.3]} 19. Qc2 {[%clk 0:01:47.2]}
19... h6 {[%clk 0:01:55.6]} 20. Ra1 {[%clk 0:01:46.1]} 20... Bg6 {[%clk
0:01:44.5]} 21. Rxa5 {[%clk 0:01:39.3]} 21... Qxa5 {[%clk 0:01:45.4]} 22. Qb3
{[%clk 0:01:32.2]} 22... Nh5 {[%clk 0:01:20.9]} 23. Qb8+ {[%clk 0:01:29.8]}
23... Kh7 {[%clk 0:01:20.6]} 24. Nc4 {[%clk 0:01:25.3]} 24... Qa2 {[%clk
0:01:02.8]} 25. Qe8 {[%clk 0:01:17.6]} 25... Bf6 {[%clk 0:00:56]} 26. Ba3 {[%clk
0:01:11]} 26... Qb1+ {[%clk 0:00:52.5]} 27. Kh2 {[%clk 0:01:10.2]} 27... Qxd3
{[%clk 0:00:51.5]} 28. Nxd6 {[%clk 0:01:04.6]} 28... Nf4 {[%clk 0:00:39.3]} 29.
Nxf7 {[%clk 0:01:00]} 29... Bxf7 {[%clk 0:00:37.2]} 30. Qxf7 {[%clk 0:00:59.7]}
30... Qf1 {[%clk 0:00:31.7]} 31. Ne1 {[%clk 0:00:16.7]} 31... Qxe1 {[%clk
0:00:29.5]} 32. Qd7 {[%clk 0:00:09.3]} 32... Qxe4 {[%clk 0:00:24.8]} 33. Be7
{[%clk 0:00:03.1]} 33... Qxg2# {[%clk 0:00:22.7]} 0-1

[Event "Betsys MČR v online bleskovém šachu 2021"]
[Site "Chess.com"]
[Date "2021.04.17"]
[Round "3"]
[White "Bartusman"]
[Black "MiroslavBucek"]
[Result "0-1"]
[WhiteElo "1967"]
[BlackElo "1623"]
[TimeControl "180+1"]
[EndTime "9:27:04 PDT"]
[Termination "Uživatel MiroslavBucek zvítězil na čas"]

1. e4 {[%clk 0:03:00.9]} 1... e5 {[%clk 0:02:59.5]} 2. Nf3 {[%clk 0:02:59.9]}
2... Nc6 {[%clk 0:02:58.7]} 3. Bc4 {[%clk 0:02:59.4]} 3... Nf6 {[%clk
0:02:57.2]} 4. d4 {[%clk 0:02:58.9]} 4... exd4 {[%clk 0:02:51.8]} 5. O-O {[%clk
0:02:59.1]} 5... Be7 {[%clk 0:02:44.9]} 6. e5 {[%clk 0:02:57.8]} 6... Ng8 {[%clk
0:02:32.5]} 7. c3 {[%clk 0:02:49.9]} 7... d6 {[%clk 0:02:26.4]} 8. Qb3 {[%clk
0:02:47]} 8... Be6 {[%clk 0:02:14]} 9. Bxe6 {[%clk 0:02:46.5]} 9... fxe6 {[%clk
0:02:13.6]} 10. Qxe6 {[%clk 0:02:42.1]} 10... Nxe5 {[%clk 0:02:04.5]} 11. Nxd4
{[%clk 0:02:32.6]} 11... Qd7 {[%clk 0:01:58.1]} 12. Qb3 {[%clk 0:02:26.5]} 12...
O-O-O {[%clk 0:01:50.5]} 13. Nd2 {[%clk 0:02:20.4]} 13... Nf6 {[%clk 0:01:49.3]}
14. N2f3 {[%clk 0:02:05.6]} 14... Nxf3+ {[%clk 0:01:47.8]} 15. Nxf3 {[%clk
0:02:05.5]} 15... h6 {[%clk 0:01:42.9]} 16. a4 {[%clk 0:01:59.7]} 16... a6
{[%clk 0:01:35.4]} 17. Qc4 {[%clk 0:01:51.6]} 17... g5 {[%clk 0:01:32.2]} 18. b4
{[%clk 0:01:51.3]} 18... Qg4 {[%clk 0:01:27]} 19. Qe2 {[%clk 0:01:32.5]} 19...
Rde8 {[%clk 0:01:25]} 20. b5 {[%clk 0:01:30.5]} 20... a5 {[%clk 0:01:23]} 21. b6
{[%clk 0:01:13]} 21... c6 {[%clk 0:01:12.8]} 22. Bd2 {[%clk 0:00:55.6]} 22...
Nd5 {[%clk 0:01:12.7]} 23. c4 {[%clk 0:00:47.9]} 23... Bf6 {[%clk 0:01:10.9]}
24. Qd3 {[%clk 0:00:37]} 24... Bxa1 {[%clk 0:01:07.1]} 25. cxd5 {[%clk 0:00:37]}
25... Be5 {[%clk 0:00:53.6]} 26. dxc6 {[%clk 0:00:36.3]} 26... bxc6 {[%clk
0:00:47.6]} 27. Qa6+ {[%clk 0:00:36.1]} 27... Kd7 {[%clk 0:00:45.8]} 28. Qb7+
{[%clk 0:00:22]} 28... Ke6 {[%clk 0:00:43.4]} 29. Qxc6 {[%clk 0:00:19.7]} 29...
Rc8 {[%clk 0:00:38.9]} 30. Qb5 {[%clk 0:00:19.6]} 30... Rc5 {[%clk 0:00:35.8]}
31. Qb3+ {[%clk 0:00:17.3]} 31... Kf6 {[%clk 0:00:32.1]} 32. b7 {[%clk
0:00:16.4]} 32... Rb8 {[%clk 0:00:31.2]} 33. Qb6 {[%clk 0:00:13.2]} 33... Qd7
{[%clk 0:00:30.5]} 34. Bxa5 {[%clk 0:00:11.8]} 34... Rxb7 {[%clk 0:00:28.9]} 35.
Qa6 {[%clk 0:00:11.4]} 35... Ra7 {[%clk 0:00:27.5]} 36. Nxe5 {[%clk 0:00:06.5]}
36... Rxe5 {[%clk 0:00:25.3]} 0-1

[Event "Betsys MČR v online bleskovém šachu 2021"]
[Site "Chess.com"]
[Date "2021.04.17"]
[Round "3"]
[White "Zelezny1984"]
[Black "pavelchrz"]
[Result "1-0"]
[WhiteElo "2063"]
[BlackElo "1703"]
[TimeControl "180+1"]
[EndTime "9:27:05 PDT"]
[Termination "Uživatel Zelezny1984 zvítězil na čas"]

1. e4 {[%clk 0:03:00.9]} 1... c5 {[%clk 0:02:54.9]} 2. Nc3 {[%clk 0:03:00.8]}
2... Nc6 {[%clk 0:02:47.8]} 3. g3 {[%clk 0:03:01.2]} 3... g6 {[%clk 0:02:47.1]}
4. Bg2 {[%clk 0:03:01.7]} 4... Bg7 {[%clk 0:02:47.9]} 5. d3 {[%clk 0:03:02.6]}
5... d6 {[%clk 0:02:45.6]} 6. Nh3 {[%clk 0:03:02.8]} 6... Rb8 {[%clk 0:02:38.7]}
7. O-O {[%clk 0:02:56.5]} 7... Nd4 {[%clk 0:02:19.7]} 8. Be3 {[%clk 0:02:39.3]}
8... h5 {[%clk 0:02:17.1]} 9. f4 {[%clk 0:02:37.1]} 9... Bg4 {[%clk 0:02:14.7]}
10. Qd2 {[%clk 0:02:30.6]} 10... Qd7 {[%clk 0:02:05.4]} 11. Nf2 {[%clk
0:02:28.9]} 11... Nf3+ {[%clk 0:01:53.4]} 12. Bxf3 {[%clk 0:02:23.2]} 12... Bxf3
{[%clk 0:01:54.1]} 13. h3 {[%clk 0:02:09.9]} 13... Nh6 {[%clk 0:01:42.8]} 14. d4
{[%clk 0:01:50.7]} 14... Ng4 {[%clk 0:01:13.9]} 15. hxg4 {[%clk 0:01:29]} 15...
hxg4 {[%clk 0:01:09.3]} 16. dxc5 {[%clk 0:01:09.8]} 16... Rc8 {[%clk 0:00:47.8]}
17. cxd6 {[%clk 0:00:49.1]} 17... exd6 {[%clk 0:00:47.7]} 18. Bd4 {[%clk
0:00:48.8]} 18... f6 {[%clk 0:00:40.2]} 19. Ne2 {[%clk 0:00:35.4]} 19... Kf7
{[%clk 0:00:34.8]} 20. c3 {[%clk 0:00:29]} 20... Rh7 {[%clk 0:00:22.9]} 21. Be3
{[%clk 0:00:18.2]} 21... Qe8 {[%clk 0:00:18.5]} 22. Nd4 {[%clk 0:00:18.1]} 22...
Qh8 {[%clk 0:00:07.4]} 23. Nxf3 {[%clk 0:00:16.8]} 23... gxf3 {[%clk 0:00:06.4]}
24. Qd1 {[%clk 0:00:15.8]} 24... Re8 {[%clk 0:00:04.7]} 25. Qxf3 {[%clk
0:00:15.7]} 25... d5 {[%clk 0:00:03.8]} 26. exd5 {[%clk 0:00:14.1]} 26... f5
{[%clk 0:00:03.7]} 27. Bd4 {[%clk 0:00:14.3]} 27... b6 {[%clk 0:00:02.8]} 28.
Bxg7 {[%clk 0:00:14.3]} 28... Kxg7 {[%clk 0:00:02.8]} 29. Rae1 {[%clk
0:00:14.7]} 29... Rf8 {[%clk 0:00:01.9]} 30. Re7+ {[%clk 0:00:13.9]} 30... Rf7
{[%clk 0:00:01.6]} 31. Rxf7+ {[%clk 0:00:14.2]} 31... Kxf7 {[%clk 0:00:01.6]}
32. Re1 {[%clk 0:00:14.3]} 1-0

[Event "Betsys MČR v online bleskovém šachu 2021"]
[Site "Chess.com"]
[Date "2021.04.17"]
[Round "3"]
[White "Bavorak15"]
[Black "Pokemonchess"]
[Result "0-1"]
[WhiteElo "1586"]
[BlackElo "1941"]
[TimeControl "180+1"]
[EndTime "9:27:07 PDT"]
[Termination "Uživatel Pokemonchess zvítězil po vzdání soupeře"]

1. e4 {[%clk 0:03:00.9]} 1... c5 {[%clk 0:02:59.7]} 2. Nf3 {[%clk 0:03:00.4]}
2... Nc6 {[%clk 0:02:57.9]} 3. d4 {[%clk 0:03:00.5]} 3... cxd4 {[%clk
0:02:57.5]} 4. Nxd4 {[%clk 0:03:01.4]} 4... g6 {[%clk 0:02:57.8]} 5. Be3 {[%clk
0:02:47.6]} 5... Bg7 {[%clk 0:02:56.9]} 6. Nc3 {[%clk 0:02:44.8]} 6... Nf6
{[%clk 0:02:56.5]} 7. Qd2 {[%clk 0:02:43.1]} 7... O-O {[%clk 0:02:49]} 8. O-O-O
{[%clk 0:02:40.4]} 8... Ng4 {[%clk 0:02:48.5]} 9. Nxc6 {[%clk 0:02:35.2]} 9...
bxc6 {[%clk 0:02:47.6]} 10. Bg5 {[%clk 0:02:32.2]} 10... d6 {[%clk 0:02:33.5]}
11. f3 {[%clk 0:02:30]} 11... Ne5 {[%clk 0:02:30]} 12. Bh6 {[%clk 0:02:25.5]}
12... Be6 {[%clk 0:02:26.3]} 13. Bxg7 {[%clk 0:02:22.8]} 13... Kxg7 {[%clk
0:02:26.7]} 14. f4 {[%clk 0:01:58.4]} 14... Nd7 {[%clk 0:02:17.1]} 15. f5 {[%clk
0:01:31.2]} 15... gxf5 {[%clk 0:02:08.4]} 16. Qg5+ {[%clk 0:01:30.3]} 16... Kh8
{[%clk 0:02:08]} 17. exf5 {[%clk 0:01:30.5]} 17... Bd5 {[%clk 0:02:05.3]} 18.
Nxd5 {[%clk 0:01:30.6]} 18... cxd5 {[%clk 0:02:04.3]} 19. Rxd5 {[%clk
0:01:27.5]} 19... Nf6 {[%clk 0:02:04.2]} 20. Rd1 {[%clk 0:01:11.2]} 20... Qb6
{[%clk 0:02:03.3]} 21. Bc4 {[%clk 0:01:02.9]} 21... Rab8 {[%clk 0:02:00.2]} 22.
Bb3 {[%clk 0:01:00.5]} 22... a5 {[%clk 0:01:59]} 23. a4 {[%clk 0:00:57.9]} 23...
Qc5 {[%clk 0:01:56.4]} 24. Qf4 {[%clk 0:00:38.4]} 24... Rxb3 {[%clk 0:01:47.5]}
25. Qd4 {[%clk 0:00:22.5]} 25... Qxd4 {[%clk 0:01:43.6]} 26. Rxd4 {[%clk
0:00:23.4]} 26... Rb4 {[%clk 0:01:43.6]} 27. Rhd1 {[%clk 0:00:18.8]} 27... Rxd4
{[%clk 0:01:42.1]} 28. Rxd4 {[%clk 0:00:19.7]} 28... Rc8 {[%clk 0:01:40.9]} 29.
c3 {[%clk 0:00:18.5]} 29... Nd7 {[%clk 0:01:40.8]} 30. Kd2 {[%clk 0:00:14.7]}
30... Nc5 {[%clk 0:01:40.7]} 31. Ke3 {[%clk 0:00:04.4]} 31... Rb8 {[%clk
0:01:38.4]} 32. b4 {[%clk 0:00:02.1]} 32... axb4 {[%clk 0:01:37]} 33. cxb4
{[%clk 0:00:01.9]} 33... Nxa4 {[%clk 0:01:35.8]} 34. f6 {[%clk 0:00:02.3]} 34...
exf6 {[%clk 0:01:33.3]} 35. Rxd6 {[%clk 0:00:02.3]} 35... Rxb4 {[%clk
0:01:33.3]} 36. Rxf6 {[%clk 0:00:02.8]} 36... Kg7 {[%clk 0:01:33.9]} 37. Rf4
{[%clk 0:00:02.2]} 37... Rxf4 {[%clk 0:01:33]} 38. Kxf4 {[%clk 0:00:03.1]} 38...
Nb6 {[%clk 0:01:33.1]} 39. h4 {[%clk 0:00:02.7]} 39... Nd7 {[%clk 0:01:33.1]}
40. g4 {[%clk 0:00:03.1]} 40... Nf6 {[%clk 0:01:32.7]} 41. g5 {[%clk 0:00:03]}
41... Ng8 {[%clk 0:01:33]} 42. Kf5 {[%clk 0:00:02.9]} 42... Ne7+ {[%clk
0:01:32.6]} 43. Ke5 {[%clk 0:00:02.3]} 43... Ng6+ {[%clk 0:01:32.8]} 44. Kf5
{[%clk 0:00:02.2]} 44... Nxh4+ {[%clk 0:01:33.7]} 45. Kg4 {[%clk 0:00:01.3]}
45... Ng6 {[%clk 0:01:33.4]} 46. Kf5 {[%clk 0:00:01.6]} 46... Ne7+ {[%clk
0:01:33]} 47. Kg4 {[%clk 0:00:01.6]} 47... f6 {[%clk 0:01:31.1]} 48. gxf6+
{[%clk 0:00:01.7]} 48... Kxf6 {[%clk 0:01:31.3]} 49. Kh5 {[%clk 0:00:02]} 49...
Kg7 {[%clk 0:01:32.2]} 50. Kg5 {[%clk 0:00:02]} 50... h6+ {[%clk 0:01:32.3]} 51.
Kh5 {[%clk 0:00:02.3]} 51... Kh7 {[%clk 0:01:32.9]} 52. Kh4 {[%clk 0:00:02.5]}
52... Kg6 {[%clk 0:01:33.8]} 53. Kg4 {[%clk 0:00:02.3]} 53... h5+ {[%clk
0:01:34.7]} 54. Kh4 {[%clk 0:00:02.6]} 54... Kh6 {[%clk 0:01:35.6]} 55. Kg3
{[%clk 0:00:02.7]} 55... Kg6 {[%clk 0:01:36.5]} 56. Kh4 {[%clk 0:00:02.8]} 56...
Nf5+ {[%clk 0:01:36.2]} 57. Kh3 {[%clk 0:00:03.2]} 57... Kg5 {[%clk 0:01:37]}
58. Kg2 {[%clk 0:00:02.3]} 58... Kg4 {[%clk 0:01:37.8]} 59. Kh2 {[%clk
0:00:02.5]} 59... h4 {[%clk 0:01:38.6]} 60. Kg1 {[%clk 0:00:02.4]} 60... Kg3
{[%clk 0:01:38.5]} 61. Kh1 {[%clk 0:00:02.4]} 61... h3 {[%clk 0:01:38.7]} 62.
Kg1 {[%clk 0:00:02.4]} 62... Nh4 {[%clk 0:01:37.5]} 63. Kh1 {[%clk 0:00:02.6]}
63... Ng6 {[%clk 0:01:34.4]} 64. Kg1 {[%clk 0:00:02.8]} 64... Nf8 {[%clk
0:01:34.8]} 65. Kh1 {[%clk 0:00:03.2]} 65... Nd7 {[%clk 0:01:35.6]} 66. Kg1
{[%clk 0:00:03.7]} 66... Nc5 {[%clk 0:01:36.4]} 67. Kh1 {[%clk 0:00:04.6]} 67...
Nd3 {[%clk 0:01:36.9]} 68. Kg1 {[%clk 0:00:05.5]} 68... Nf2 {[%clk 0:01:37.1]}
69. Kf1 {[%clk 0:00:04.2]} 69... h2 {[%clk 0:01:37.3]} 0-1